Workbook

Sheet CASH FLOW
C1: Period: | D1: 1 | E1: =D1+1 -> 2 | F1: =E1+1 -> 3 | G1: =F1+1 -> 4 | H1: =G1+1 -> 5 | I1: =H1+1 -> 6 | J1: =I1+1 -> 7 | K1: =J1+1 -> 8 | L1: =K1+1 -> 9 | M1: =L1+1 -> 10 | N1: =M1+1 -> 11 | O1: =N1+1 -> 12 | P1: =O1+1 -> 13 | Q1: =P1+1 -> 14 | R1: =Q1+1 -> 15 | S1: =R1+1 -> 16 | T1: =S1+1 -> 17 | U1: =T1+1 -> 18 | V1: =U1+1 -> 19 | W1: =V1+1 -> 20 | X1: =W1+1 -> 21 | Y1: =X1+1 -> 22 | Z1: =Y1+1 -> 23 | AA1: =Z1+1 -> 24 | AB1: =AA1+1 -> 25 | AC1: =AB1+1 -> 26 | AD1: =AC1+1 -> 27
B2: FAMILY CASH FLOW PROJECTION
B4: Today's date: | C4: 2014-12-11
B5: Last pay date: | C5: 2014-11-28
B6: Cash balance alert minimum | C6: 2500
B8: DATE | C8: Current Cash | D8: =C5 -> 2014-11-28 | E8: =D8+14 -> 2014-12-12 | F8: 2014-12-26 | G8: 2015-01-09 | H8: 2015-01-23 | I8: 2015-02-06 | J8: 2015-02-20 | K8: 2015-03-06 | L8: 2015-03-20 | M8: 2015-04-03 | N8: 2015-04-17 | O8: 2015-05-01 | P8: 2015-05-15 | Q8: 2015-05-29 | R8: 2015-06-12 | S8: 2015-06-26 | T8: 2015-07-10 | U8: 2015-07-24 | V8: 2015-08-07 | W8: 2015-08-21 | X8: 2015-09-04 | Y8: 2015-09-18 | Z8: 2015-10-02 | AA8: 2015-10-16 | AB8: 2015-10-30 | AC8: 2015-11-13 | AD8: 2015-11-27 | AE8: Total
B9: Cash on hand (beginning of period) | C9: ='Bank Balances'!C18 -> 9653 | D9: =C9 -> 9653 | E9: =D62 -> 13273.4 | F9: 14087.8 | G9: 12208.2 | H9: 13422.6 | I9: 13043 | J9: 16257.4 | K9: 15877.8 | L9: 19092.2 | M9: 18712.6 | N9: 13927 | O9: 13547.4 | P9: 14761.8 | Q9: 17976.2 | R9: 17596.6 | S9: 20811 | T9: 20431.4 | U9: 21145.8 | V9: 20766.2 | W9: 21980.6 | X9: 21601 | Y9: 22815.4 | Z9: 22435.8 | AA9: 23650.2 | AB9: 24864.6 | AC9: 24485 | AD9: 25699.4
B10: Cash on hand (end of period) | D10: =D62 -> 13273.4 | E10: 14087.8 | F10: 12208.2 | G10: 13422.6 | H10: 13043 | I10: =I62 -> 16257.4 | J10: 15877.8 | K10: 19092.2 | L10: 18712.6 | M10: =M62 -> 13927 | N10: =N62 -> 13547.4 | O10: 14761.8 | P10: 17976.2 | Q10: 17596.6 | R10: 20811 | S10: 20431.4 | T10: 21145.8 | U10: =U62 -> 20766.2 | V10: 21980.6 | W10: =W62 -> 21601 | X10: =X62 -> 22815.4 | Y10: 22435.8 | Z10: =Z62 -> 23650.2 | AA10: 24864.6 | AB10: =AB62 -> 24485 | AC10: 25699.4 | AD10: 25319.8
B12: CASH RECEIPTS | C12: Beginning | AE12: Total
B13: On Campus Job | D13: =Income!$K$4 -> 264 | E13: =Income!$K$4 -> 264 | F13: =Income!$K$4 -> 264 | G13: =Income!$K$4 -> 264 | H13: =Income!$K$4 -> 264 | I13: =Income!$K$4 -> 264 | J13: =Income!$K$4 -> 264 | K13: =Income!$K$4 -> 264 | L13: =Income!$K$4 -> 264 | M13: =Income!$K$4 -> 264 | N13: =Income!$K$4 -> 264 | O13: =Income!$K$4 -> 264 | P13: =Income!$K$4 -> 264 | Q13: =Income!$K$4 -> 264 | R13: =Income!$K$4 -> 264 | S13: =Income!$K$4 -> 264 | T13: =Income!$K$4 -> 264 | U13: =Income!$K$4 -> 264 | V13: =Income!$K$4 -> 264 | W13: =Income!$K$4 -> 264 | X13: =Income!$K$4 -> 264 | Y13: =Income!$K$4 -> 264 | Z13: =Income!$K$4 -> 264 | AA13: =Income!$K$4 -> 264 | AB13: =Income!$K$4 -> 264 | AC13: =Income!$K$4 -> 264 | AD13: =Income!$K$4 -> 264 | AE13: =SUM(D13:AD13) -> 7128
B14: Red Robin | D14: =Income!$K$5 -> 1074.4 | E14: =Income!$K$5 -> 1074.4 | F14: =Income!$K$5 -> 1074.4 | G14: =Income!$K$5 -> 1074.4 | H14: =Income!$K$5 -> 1074.4 | I14: =Income!$K$5 -> 1074.4 | J14: =Income!$K$5 -> 1074.4 | K14: =Income!$K$5 -> 1074.4 | L14: =Income!$K$5 -> 1074.4 | M14: =Income!$K$5 -> 1074.4 | N14: =Income!$K$5 -> 1074.4 | O14: =Income!$K$5 -> 1074.4 | P14: =Income!$K$5 -> 1074.4 | Q14: =Income!$K$5 -> 1074.4 | R14: =Income!$K$5 -> 1074.4 | S14: =Income!$K$5 -> 1074.4 | T14: =Income!$K$5 -> 1074.4 | U14: =Income!$K$5 -> 1074.4 | V14: =Income!$K$5 -> 1074.4 | W14: =Income!$K$5 -> 1074.4 | X14: =Income!$K$5 -> 1074.4 | Y14: =Income!$K$5 -> 1074.4 | Z14: =Income!$K$5 -> 1074.4 | AA14: =Income!$K$5 -> 1074.4 | AB14: =Income!$K$5 -> 1074.4 | AC14: =Income!$K$5 -> 1074.4 | AD14: =Income!$K$5 -> 1074.4 | AE14: =SUM(D14:AD14) -> 29008.8
B15: Side Job Name | D15: =Income!$K$6 -> 50 | E15: =Income!$K$6 -> 50 | F15: =Income!$K$6 -> 50 | G15: =Income!$K$6 -> 50 | H15: =Income!$K$6 -> 50 | I15: =Income!$K$6 -> 50 | J15: =Income!$K$6 -> 50 | K15: =Income!$K$6 -> 50 | L15: =Income!$K$6 -> 50 | M15: =Income!$K$6 -> 50 | N15: =Income!$K$6 -> 50 | O15: =Income!$K$6 -> 50 | P15: =Income!$K$6 -> 50 | Q15: =Income!$K$6 -> 50 | R15: =Income!$K$6 -> 50 | S15: =Income!$K$6 -> 50 | T15: =Income!$K$6 -> 50 | U15: =Income!$K$6 -> 50 | V15: =Income!$K$6 -> 50 | W15: =Income!$K$6 -> 50 | X15: =Income!$K$6 -> 50 | Y15: =Income!$K$6 -> 50 | Z15: =Income!$K$6 -> 50 | AA15: =Income!$K$6 -> 50 | AB15: =Income!$K$6 -> 50 | AC15: =Income!$K$6 -> 50 | AD15: =Income!$K$6 -> 50 | AE15: =SUM(D15:AD15) -> 1350
AE16: =SUM(D16:AD16) -> 0
AE17: =SUM(D17:AD17) -> 0
B18: Cash from investments/assets | D18: 4000 | F18: 4000 | I18: 2000 | K18: 2000 | M18: 2000 | P18: 2000 | R18: 2000 | AE18: =SUM(D18:AD18) -> 18000
B19: TOTAL CASH RECEIPTS | D19: =SUM(D13:D18) -> 5388.4 | E19: 1388.4 | F19: 5388.4 | G19: 1388.4 | H19: 1388.4 | I19: =SUM(I13:I18) -> 3388.4 | J19: 1388.4 | K19: 3388.4 | L19: 1388.4 | M19: =SUM(M13:M18) -> 3388.4 | N19: =SUM(N13:N18) -> 1388.4 | O19: 1388.4 | P19: 3388.4 | Q19: 1388.4 | R19: 3388.4 | S19: 1388.4 | T19: 1388.4 | U19: =SUM(U13:U18) -> 1388.4 | V19: 1388.4 | W19: =SUM(W13:W18) -> 1388.4 | X19: =SUM(X13:X18) -> 1388.4 | Y19: 1388.4 | Z19: =SUM(Z13:Z18) -> 1388.4 | AA19: 1388.4 | AB19: =SUM(AB13:AB18) -> 1388.4 | AC19: 1388.4 | AD19: 1388.4 | AE19: =SUM(AE13:AE18) -> 55486.8
B20: Total cash available | D20: =(D9+D19) -> 15041.4 | E20: 14661.8 | F20: 19476.2 | G20: 13596.6 | H20: 14811 | I20: =(I9+I19) -> 16431.4 | J20: 17645.8 | K20: 19266.2 | L20: 20480.6 | M20: =(M9+M19) -> 22101 | N20: =(N9+N19) -> 15315.4 | O20: 14935.8 | P20: 18150.2 | Q20: 19364.6 | R20: 20985 | S20: 22199.4 | T20: 21819.8 | U20: =(U9+U19) -> 22534.2 | V20: 22154.6 | W20: =(W9+W19) -> 23369 | X20: =(X9+X19) -> 22989.4 | Y20: 24203.8 | Z20: =(Z9+Z19) -> 23824.2 | AA20: 25038.6 | AB20: =(AB9+AB19) -> 26253 | AC20: 25873.4 | AD20: 27087.8
B22: CASH PAID OUT | C22: Beginning | AE22: Total
B23: FIXED COSTS | AE23: =SUM(D23:AD23) -> 0
B24: Tithing | D24: ='Recurring Expenses'!$D$4 -> 174 | E24: ='Recurring Expenses'!$D$4 -> 174 | F24: ='Recurring Expenses'!$D$4 -> 174 | G24: ='Recurring Expenses'!$D$4 -> 174 | H24: ='Recurring Expenses'!$D$4 -> 174 | I24: ='Recurring Expenses'!$D$4 -> 174 | J24: ='Recurring Expenses'!$D$4 -> 174 | K24: ='Recurring Expenses'!$D$4 -> 174 | L24: ='Recurring Expenses'!$D$4 -> 174 | M24: ='Recurring Expenses'!$D$4 -> 174 | N24: ='Recurring Expenses'!$D$4 -> 174 | O24: ='Recurring Expenses'!$D$4 -> 174 | P24: ='Recurring Expenses'!$D$4 -> 174 | Q24: ='Recurring Expenses'!$D$4 -> 174 | R24: ='Recurring Expenses'!$D$4 -> 174 | S24: ='Recurring Expenses'!$D$4 -> 174 | T24: ='Recurring Expenses'!$D$4 -> 174 | U24: ='Recurring Expenses'!$D$4 -> 174 | V24: ='Recurring Expenses'!$D$4 -> 174 | W24: ='Recurring Expenses'!$D$4 -> 174 | X24: ='Recurring Expenses'!$D$4 -> 174 | Y24: ='Recurring Expenses'!$D$4 -> 174 | Z24: ='Recurring Expenses'!$D$4 -> 174 | AA24: ='Recurring Expenses'!$D$4 -> 174 | AB24: ='Recurring Expenses'!$D$4 -> 174 | AC24: ='Recurring Expenses'!$D$4 -> 174 | AD24: ='Recurring Expenses'!$D$4 -> 174 | AE24: =SUM(D24:AD24) -> 4698
B25: Fast offering | D25: ='Recurring Expenses'!$D$5 -> 20 | F25: ='Recurring Expenses'!$D$5 -> 20 | H25: ='Recurring Expenses'!$D$5 -> 20 | J25: ='Recurring Expenses'!$D$5 -> 20 | L25: ='Recurring Expenses'!$D$5 -> 20 | N25: ='Recurring Expenses'!$D$5 -> 20 | Q25: ='Recurring Expenses'!$D$5 -> 20 | S25: ='Recurring Expenses'!$D$5 -> 20 | U25: ='Recurring Expenses'!$D$5 -> 20 | W25: ='Recurring Expenses'!$D$5 -> 20 | Y25: ='Recurring Expenses'!$D$5 -> 20 | AB25: ='Recurring Expenses'!$D$5 -> 20 | AD25: ='Recurring Expenses'!$D$5 -> 20 | AE25: =SUM(D25:AD25) -> 260
B26: Rent | D26: ='Recurring Expenses'!$D$6 -> 695 | F26: ='Recurring Expenses'!$D$6 -> 695 | H26: ='Recurring Expenses'!$D$6 -> 695 | J26: ='Recurring Expenses'!$D$6 -> 695 | L26: ='Recurring Expenses'!$D$6 -> 695 | N26: ='Recurring Expenses'!$D$6 -> 695 | Q26: ='Recurring Expenses'!$D$6 -> 695 | S26: ='Recurring Expenses'!$D$6 -> 695 | U26: ='Recurring Expenses'!$D$6 -> 695 | W26: ='Recurring Expenses'!$D$6 -> 695 | Y26: ='Recurring Expenses'!$D$6 -> 695 | AB26: ='Recurring Expenses'!$D$6 -> 695 | AD26: ='Recurring Expenses'!$D$6 -> 695 | AE26: =SUM(D26:AD26) -> 9035
B27: Utilities | D27: ='Recurring Expenses'!$D$7 -> 30 | F27: ='Recurring Expenses'!$D$7 -> 30 | H27: ='Recurring Expenses'!$D$7 -> 30 | J27: ='Recurring Expenses'!$D$7 -> 30 | L27: ='Recurring Expenses'!$D$7 -> 30 | N27: ='Recurring Expenses'!$D$7 -> 30 | Q27: ='Recurring Expenses'!$D$7 -> 30 | S27: ='Recurring Expenses'!$D$7 -> 30 | U27: ='Recurring Expenses'!$D$7 -> 30 | W27: ='Recurring Expenses'!$D$7 -> 30 | Y27: ='Recurring Expenses'!$D$7 -> 30 | AB27: ='Recurring Expenses'!$D$7 -> 30 | AD27: ='Recurring Expenses'!$D$7 -> 30 | AE27: =SUM(D27:AD27) -> 390
B28: Groceries | D28: ='Recurring Expenses'!$D$8 -> 190 | E28: ='Recurring Expenses'!$D$8 -> 190 | F28: ='Recurring Expenses'!$D$8 -> 190 | G28: ='Recurring Expenses'!$D$8 -> 190 | H28: ='Recurring Expenses'!$D$8 -> 190 | I28: ='Recurring Expenses'!$D$8 -> 190 | J28: ='Recurring Expenses'!$D$8 -> 190 | K28: ='Recurring Expenses'!$D$8 -> 190 | L28: ='Recurring Expenses'!$D$8 -> 190 | M28: ='Recurring Expenses'!$D$8 -> 190 | N28: ='Recurring Expenses'!$D$8 -> 190 | O28: ='Recurring Expenses'!$D$8 -> 190 | P28: ='Recurring Expenses'!$D$8 -> 190 | Q28: ='Recurring Expenses'!$D$8 -> 190 | R28: ='Recurring Expenses'!$D$8 -> 190 | S28: ='Recurring Expenses'!$D$8 -> 190 | T28: ='Recurring Expenses'!$D$8 -> 190 | U28: ='Recurring Expenses'!$D$8 -> 190 | V28: ='Recurring Expenses'!$D$8 -> 190 | W28: ='Recurring Expenses'!$D$8 -> 190 | X28: ='Recurring Expenses'!$D$8 -> 190 | Y28: ='Recurring Expenses'!$D$8 -> 190 | Z28: ='Recurring Expenses'!$D$8 -> 190 | AA28: ='Recurring Expenses'!$D$8 -> 190 | AB28: ='Recurring Expenses'!$D$8 -> 190 | AC28: ='Recurring Expenses'!$D$8 -> 190 | AD28: ='Recurring Expenses'!$D$8 -> 190 | AE28: =SUM(D28:AD28) -> 5130
B29: Eating out | D29: ='Recurring Expenses'!$D$9 -> 100 | E29: ='Recurring Expenses'!$D$9 -> 100 | F29: ='Recurring Expenses'!$D$9 -> 100 | G29: ='Recurring Expenses'!$D$9 -> 100 | H29: ='Recurring Expenses'!$D$9 -> 100 | I29: ='Recurring Expenses'!$D$9 -> 100 | J29: ='Recurring Expenses'!$D$9 -> 100 | K29: ='Recurring Expenses'!$D$9 -> 100 | L29: ='Recurring Expenses'!$D$9 -> 100 | M29: ='Recurring Expenses'!$D$9 -> 100 | N29: ='Recurring Expenses'!$D$9 -> 100 | O29: ='Recurring Expenses'!$D$9 -> 100 | P29: ='Recurring Expenses'!$D$9 -> 100 | Q29: ='Recurring Expenses'!$D$9 -> 100 | R29: ='Recurring Expenses'!$D$9 -> 100 | S29: ='Recurring Expenses'!$D$9 -> 100 | T29: ='Recurring Expenses'!$D$9 -> 100 | U29: ='Recurring Expenses'!$D$9 -> 100 | V29: ='Recurring Expenses'!$D$9 -> 100 | W29: ='Recurring Expenses'!$D$9 -> 100 | X29: ='Recurring Expenses'!$D$9 -> 100 | Y29: ='Recurring Expenses'!$D$9 -> 100 | Z29: ='Recurring Expenses'!$D$9 -> 100 | AA29: ='Recurring Expenses'!$D$9 -> 100 | AB29: ='Recurring Expenses'!$D$9 -> 100 | AC29: ='Recurring Expenses'!$D$9 -> 100 | AD29: ='Recurring Expenses'!$D$9 -> 100 | AE29: =SUM(D29:AD29) -> 2700
B30: Personal-care (haircut, laundry, toiletries, etc.) | D30: ='Recurring Expenses'!$D$10 -> 20 | F30: ='Recurring Expenses'!$D$10 -> 20 | H30: ='Recurring Expenses'!$D$10 -> 20 | J30: ='Recurring Expenses'!$D$10 -> 20 | L30: ='Recurring Expenses'!$D$10 -> 20 | N30: ='Recurring Expenses'!$D$10 -> 20 | Q30: ='Recurring Expenses'!$D$10 -> 20 | S30: ='Recurring Expenses'!$D$10 -> 20 | U30: ='Recurring Expenses'!$D$10 -> 20 | W30: ='Recurring Expenses'!$D$10 -> 20 | Y30: ='Recurring Expenses'!$D$10 -> 20 | AB30: ='Recurring Expenses'!$D$10 -> 20 | AD30: ='Recurring Expenses'!$D$10 -> 20 | AE30: =SUM(D30:AD30) -> 260
B31: Gas | D31: ='Recurring Expenses'!$D$11 -> 150 | E31: ='Recurring Expenses'!$D$11 -> 150 | F31: ='Recurring Expenses'!$D$11 -> 150 | G31: ='Recurring Expenses'!$D$11 -> 150 | H31: ='Recurring Expenses'!$D$11 -> 150 | I31: ='Recurring Expenses'!$D$11 -> 150 | J31: ='Recurring Expenses'!$D$11 -> 150 | K31: ='Recurring Expenses'!$D$11 -> 150 | L31: ='Recurring Expenses'!$D$11 -> 150 | M31: ='Recurring Expenses'!$D$11 -> 150 | N31: ='Recurring Expenses'!$D$11 -> 150 | O31: ='Recurring Expenses'!$D$11 -> 150 | P31: ='Recurring Expenses'!$D$11 -> 150 | Q31: ='Recurring Expenses'!$D$11 -> 150 | R31: ='Recurring Expenses'!$D$11 -> 150 | S31: ='Recurring Expenses'!$D$11 -> 150 | T31: ='Recurring Expenses'!$D$11 -> 150 | U31: ='Recurring Expenses'!$D$11 -> 150 | V31: ='Recurring Expenses'!$D$11 -> 150 | W31: ='Recurring Expenses'!$D$11 -> 150 | X31: ='Recurring Expenses'!$D$11 -> 150 | Y31: ='Recurring Expenses'!$D$11 -> 150 | Z31: ='Recurring Expenses'!$D$11 -> 150 | AA31: ='Recurring Expenses'!$D$11 -> 150 | AB31: ='Recurring Expenses'!$D$11 -> 150 | AC31: ='Recurring Expenses'!$D$11 -> 150 | AD31: ='Recurring Expenses'!$D$11 -> 150 | AE31: =SUM(D31:AD31) -> 4050
B32: Vehicle Repairs | D32: ='Recurring Expenses'!$D$12 -> 100 | F32: ='Recurring Expenses'!$D$12 -> 100 | H32: ='Recurring Expenses'!$D$12 -> 100 | J32: ='Recurring Expenses'!$D$12 -> 100 | L32: ='Recurring Expenses'!$D$12 -> 100 | N32: ='Recurring Expenses'!$D$12 -> 100 | Q32: ='Recurring Expenses'!$D$12 -> 100 | S32: ='Recurring Expenses'!$D$12 -> 100 | U32: ='Recurring Expenses'!$D$12 -> 100 | W32: ='Recurring Expenses'!$D$12 -> 100 | Y32: ='Recurring Expenses'!$D$12 -> 100 | AB32: ='Recurring Expenses'!$D$12 -> 100 | AD32: ='Recurring Expenses'!$D$12 -> 100 | AE32: =SUM(D32:AD32) -> 1300
B33: Public Transportation | D33: ='Recurring Expenses'!$D$13 -> 50 | F33: ='Recurring Expenses'!$D$13 -> 50 | H33: ='Recurring Expenses'!$D$13 -> 50 | J33: ='Recurring Expenses'!$D$13 -> 50 | L33: ='Recurring Expenses'!$D$13 -> 50 | N33: ='Recurring Expenses'!$D$13 -> 50 | Q33: ='Recurring Expenses'!$D$13 -> 50 | S33: ='Recurring Expenses'!$D$13 -> 50 | U33: ='Recurring Expenses'!$D$13 -> 50 | W33: ='Recurring Expenses'!$D$13 -> 50 | Y33: ='Recurring Expenses'!$D$13 -> 50 | AB33: ='Recurring Expenses'!$D$13 -> 50 | AD33: ='Recurring Expenses'!$D$13 -> 50 | AE33: =SUM(D33:AD33) -> 650
B34: Dates | D34: ='Recurring Expenses'!$D$14 -> 30 | E34: ='Recurring Expenses'!$D$14 -> 30 | F34: ='Recurring Expenses'!$D$14 -> 30 | G34: ='Recurring Expenses'!$D$14 -> 30 | H34: ='Recurring Expenses'!$D$14 -> 30 | I34: ='Recurring Expenses'!$D$14 -> 30 | J34: ='Recurring Expenses'!$D$14 -> 30 | K34: ='Recurring Expenses'!$D$14 -> 30 | L34: ='Recurring Expenses'!$D$14 -> 30 | M34: ='Recurring Expenses'!$D$14 -> 30 | N34: ='Recurring Expenses'!$D$14 -> 30 | O34: ='Recurring Expenses'!$D$14 -> 30 | P34: ='Recurring Expenses'!$D$14 -> 30 | Q34: ='Recurring Expenses'!$D$14 -> 30 | R34: ='Recurring Expenses'!$D$14 -> 30 | S34: ='Recurring Expenses'!$D$14 -> 30 | T34: ='Recurring Expenses'!$D$14 -> 30 | U34: ='Recurring Expenses'!$D$14 -> 30 | V34: ='Recurring Expenses'!$D$14 -> 30 | W34: ='Recurring Expenses'!$D$14 -> 30 | X34: ='Recurring Expenses'!$D$14 -> 30 | Y34: ='Recurring Expenses'!$D$14 -> 30 | Z34: ='Recurring Expenses'!$D$14 -> 30 | AA34: ='Recurring Expenses'!$D$14 -> 30 | AB34: ='Recurring Expenses'!$D$14 -> 30 | AC34: ='Recurring Expenses'!$D$14 -> 30 | AD34: ='Recurring Expenses'!$D$14 -> 30 | AE34: =SUM(D34:AD34) -> 810
B35: Gifts | D35: ='Recurring Expenses'!$D$15 -> 30 | F35: ='Recurring Expenses'!$D$15 -> 30 | H35: ='Recurring Expenses'!$D$15 -> 30 | J35: ='Recurring Expenses'!$D$15 -> 30 | L35: ='Recurring Expenses'!$D$15 -> 30 | N35: ='Recurring Expenses'!$D$15 -> 30 | Q35: ='Recurring Expenses'!$D$15 -> 30 | S35: ='Recurring Expenses'!$D$15 -> 30 | U35: ='Recurring Expenses'!$D$15 -> 30 | W35: ='Recurring Expenses'!$D$15 -> 30 | Y35: ='Recurring Expenses'!$D$15 -> 30 | AB35: ='Recurring Expenses'!$D$15 -> 30 | AD35: ='Recurring Expenses'!$D$15 -> 30 | AE35: =SUM(D35:AD35) -> 390
B36: Doctor/Dental | D36: ='Recurring Expenses'!$D$16 -> 50 | F36: ='Recurring Expenses'!$D$16 -> 50 | H36: ='Recurring Expenses'!$D$16 -> 50 | J36: ='Recurring Expenses'!$D$16 -> 50 | L36: ='Recurring Expenses'!$D$16 -> 50 | N36: ='Recurring Expenses'!$D$16 -> 50 | Q36: ='Recurring Expenses'!$D$16 -> 50 | S36: ='Recurring Expenses'!$D$16 -> 50 | U36: ='Recurring Expenses'!$D$16 -> 50 | W36: ='Recurring Expenses'!$D$16 -> 50 | Y36: ='Recurring Expenses'!$D$16 -> 50 | AB36: ='Recurring Expenses'!$D$16 -> 50 | AD36: ='Recurring Expenses'!$D$16 -> 50 | AE36: =SUM(D36:AD36) -> 650
B37: Health Insurance | D37: ='Recurring Expenses'!$D$17 -> 400 | F37: ='Recurring Expenses'!$D$17 -> 400 | H37: ='Recurring Expenses'!$D$17 -> 400 | J37: ='Recurring Expenses'!$D$17 -> 400 | L37: ='Recurring Expenses'!$D$17 -> 400 | N37: ='Recurring Expenses'!$D$17 -> 400 | Q37: ='Recurring Expenses'!$D$17 -> 400 | S37: ='Recurring Expenses'!$D$17 -> 400 | U37: ='Recurring Expenses'!$D$17 -> 400 | W37: ='Recurring Expenses'!$D$17 -> 400 | Y37: ='Recurring Expenses'!$D$17 -> 400 | AB37: ='Recurring Expenses'!$D$17 -> 400 | AD37: ='Recurring Expenses'!$D$17 -> 400 | AE37: =SUM(D37:AD37) -> 5200
B38: Life Insurance | D38: ='Recurring Expenses'!$D$18 -> 50 | F38: ='Recurring Expenses'!$D$18 -> 50 | H38: ='Recurring Expenses'!$D$18 -> 50 | J38: ='Recurring Expenses'!$D$18 -> 50 | L38: ='Recurring Expenses'!$D$18 -> 50 | N38: ='Recurring Expenses'!$D$18 -> 50 | Q38: ='Recurring Expenses'!$D$18 -> 50 | S38: ='Recurring Expenses'!$D$18 -> 50 | U38: ='Recurring Expenses'!$D$18 -> 50 | W38: ='Recurring Expenses'!$D$18 -> 50 | Y38: ='Recurring Expenses'!$D$18 -> 50 | AB38: ='Recurring Expenses'!$D$18 -> 50 | AD38: ='Recurring Expenses'!$D$18 -> 50 | AE38: =SUM(D38:AD38) -> 650
B39: Vehicle Insurance | D39: ='Recurring Expenses'!$D$19 -> 19 | F39: ='Recurring Expenses'!$D$19 -> 19 | H39: ='Recurring Expenses'!$D$19 -> 19 | J39: ='Recurring Expenses'!$D$19 -> 19 | L39: ='Recurring Expenses'!$D$19 -> 19 | N39: ='Recurring Expenses'!$D$19 -> 19 | Q39: ='Recurring Expenses'!$D$19 -> 19 | S39: ='Recurring Expenses'!$D$19 -> 19 | U39: ='Recurring Expenses'!$D$19 -> 19 | W39: ='Recurring Expenses'!$D$19 -> 19 | Y39: ='Recurring Expenses'!$D$19 -> 19 | AB39: ='Recurring Expenses'!$D$19 -> 19 | AD39: ='Recurring Expenses'!$D$19 -> 19 | AE39: =SUM(D39:AD39) -> 247
B40: School Supplies | D40: ='Recurring Expenses'!$D$20 -> 30 | F40: ='Recurring Expenses'!$D$20 -> 30 | H40: ='Recurring Expenses'!$D$20 -> 30 | J40: ='Recurring Expenses'!$D$20 -> 30 | L40: ='Recurring Expenses'!$D$20 -> 30 | N40: ='Recurring Expenses'!$D$20 -> 30 | Q40: ='Recurring Expenses'!$D$20 -> 30 | S40: ='Recurring Expenses'!$D$20 -> 30 | U40: ='Recurring Expenses'!$D$20 -> 30 | W40: ='Recurring Expenses'!$D$20 -> 30 | Y40: ='Recurring Expenses'!$D$20 -> 30 | AB40: ='Recurring Expenses'!$D$20 -> 30 | AD40: ='Recurring Expenses'!$D$20 -> 30 | AE40: =SUM(D40:AD40) -> 390
B41: Baby Diapers and Wipes | D41: ='Recurring Expenses'!$D$21 -> 30 | E41: ='Recurring Expenses'!$D$21 -> 30 | F41: ='Recurring Expenses'!$D$21 -> 30 | G41: ='Recurring Expenses'!$D$21 -> 30 | H41: ='Recurring Expenses'!$D$21 -> 30 | I41: ='Recurring Expenses'!$D$21 -> 30 | J41: ='Recurring Expenses'!$D$21 -> 30 | K41: ='Recurring Expenses'!$D$21 -> 30 | L41: ='Recurring Expenses'!$D$21 -> 30 | M41: ='Recurring Expenses'!$D$21 -> 30 | N41: ='Recurring Expenses'!$D$21 -> 30 | O41: ='Recurring Expenses'!$D$21 -> 30 | P41: ='Recurring Expenses'!$D$21 -> 30 | Q41: ='Recurring Expenses'!$D$21 -> 30 | R41: ='Recurring Expenses'!$D$21 -> 30 | S41: ='Recurring Expenses'!$D$21 -> 30 | T41: ='Recurring Expenses'!$D$21 -> 30 | U41: ='Recurring Expenses'!$D$21 -> 30 | V41: ='Recurring Expenses'!$D$21 -> 30 | W41: ='Recurring Expenses'!$D$21 -> 30 | X41: ='Recurring Expenses'!$D$21 -> 30 | Y41: ='Recurring Expenses'!$D$21 -> 30 | Z41: ='Recurring Expenses'!$D$21 -> 30 | AA41: ='Recurring Expenses'!$D$21 -> 30 | AB41: ='Recurring Expenses'!$D$21 -> 30 | AC41: ='Recurring Expenses'!$D$21 -> 30 | AD41: ='Recurring Expenses'!$D$21 -> 30 | AE41: =SUM(D41:AD41) -> 810
AE42: =SUM(D42:AD42) -> 0
AE43: =SUM(D43:AD43) -> 0
AE44: =SUM(D44:AD44) -> 0
B45: VARIABLE COSTS | AE45: =SUM(D45:AD45) -> 0
B46: Sporting goods | D46: ='Recurring Expenses'!$D$25 -> 50 | F46: ='Recurring Expenses'!$D$25 -> 50 | H46: ='Recurring Expenses'!$D$25 -> 50 | J46: ='Recurring Expenses'!$D$25 -> 50 | L46: ='Recurring Expenses'!$D$25 -> 50 | N46: ='Recurring Expenses'!$D$25 -> 50 | Q46: ='Recurring Expenses'!$D$25 -> 50 | S46: ='Recurring Expenses'!$D$25 -> 50 | U46: ='Recurring Expenses'!$D$25 -> 50 | W46: ='Recurring Expenses'!$D$25 -> 50 | Y46: ='Recurring Expenses'!$D$25 -> 50 | AB46: ='Recurring Expenses'!$D$25 -> 50 | AD46: ='Recurring Expenses'!$D$25 -> 50 | AE46: =SUM(D46:AD46) -> 650
B47: Snowboarding/Hobbies | D47: ='Recurring Expenses'!$D$26 -> 100 | F47: ='Recurring Expenses'!$D$26 -> 100 | H47: ='Recurring Expenses'!$D$26 -> 100 | J47: ='Recurring Expenses'!$D$26 -> 100 | L47: ='Recurring Expenses'!$D$26 -> 100 | N47: ='Recurring Expenses'!$D$26 -> 100 | Q47: ='Recurring Expenses'!$D$26 -> 100 | S47: ='Recurring Expenses'!$D$26 -> 100 | U47: ='Recurring Expenses'!$D$26 -> 100 | W47: ='Recurring Expenses'!$D$26 -> 100 | Y47: ='Recurring Expenses'!$D$26 -> 100 | AB47: ='Recurring Expenses'!$D$26 -> 100 | AD47: ='Recurring Expenses'!$D$26 -> 100 | AE47: =SUM(D47:AD47) -> 1300
AE48: =SUM(D48:AD48) -> 0
AE49: =SUM(D49:AD49) -> 0
AE50: =SUM(D50:AD50) -> 0
B51: ONE TIME COSTS | AE51: =SUM(D51:AD51) -> 0
B52: Tuition/Books | F52: 5500 | AE52: =SUM(D52:AD52) -> 5500
B53: Birth | M53: 8000 | AE53: =SUM(D53:AD53) -> 8000
B54: Moving expenses | T54: 500 | AE54: =SUM(D54:AD54) -> 500
B55: Christmas Shopping | E55: 400 | AE55: =SUM(D55:AD55) -> 400
AE56: =SUM(D56:AD56) -> 0
AE57: =SUM(D57:AD57) -> 0
B58: SUBTOTAL BEFORE SAVINGS | D58: =SUM(D23:D57) -> 2318 | E58: 1074 | F58: 7818 | G58: 674 | H58: 2318 | I58: =SUM(I23:I57) -> 674 | J58: 2318 | K58: 674 | L58: 2318 | M58: =SUM(M23:M57) -> 8674 | N58: =SUM(N23:N57) -> 2318 | O58: 674 | P58: 674 | Q58: 2318 | R58: 674 | S58: 2318 | T58: 1174 | U58: =SUM(U23:U57) -> 2318 | V58: 674 | W58: =SUM(W23:W57) -> 2318 | X58: =SUM(X23:X57) -> 674 | Y58: 2318 | Z58: =SUM(Z23:Z57) -> 674 | AA58: 674 | AB58: =SUM(AB23:AB57) -> 2318 | AC58: 674 | AD58: 2318 | AE58: =SUM(AE23:AE57) -> 53970
B59: Emergency Fund | D59: =Savings!$D$4 -> 50 | F59: =Savings!$D$4 -> 50 | H59: =Savings!$D$4 -> 50 | J59: =Savings!$D$4 -> 50 | L59: =Savings!$D$4 -> 50 | N59: =Savings!$D$4 -> 50 | Q59: =Savings!$D$4 -> 50 | S59: =Savings!$D$4 -> 50 | U59: =Savings!$D$4 -> 50 | W59: =Savings!$D$4 -> 50 | Y59: =Savings!$D$4 -> 50 | AB59: =Savings!$D$4 -> 50 | AD59: =Savings!$D$4 -> 50 | AE59: =SUM(D59:AD59) -> 650
B60: Save for Birth | D60: =Savings!$D$5 -> 500 | E60: =Savings!$D$5 -> 500 | F60: =Savings!$D$5 -> 500 | G60: =Savings!$D$5 -> 500 | H60: =Savings!$D$5 -> 500 | I60: =Savings!$D$5 -> 500 | J60: =Savings!$D$5 -> 500 | K60: =Savings!$D$5 -> 500 | L60: =Savings!$D$5 -> 500 | M60: =Savings!$D$5 -> 500 | N60: =Savings!$D$5 -> 500 | O60: =Savings!$D$5 -> 500 | P60: =Savings!$D$5 -> 500 | Q60: =Savings!$D$5 -> 500 | R60: =Savings!$D$5 -> 500 | S60: =Savings!$D$5 -> 500 | T60: =Savings!$D$5 -> 500 | U60: =Savings!$D$5 -> 500 | V60: =Savings!$D$5 -> 500 | W60: =Savings!$D$5 -> 500 | X60: =Savings!$D$5 -> 500 | Y60: =Savings!$D$5 -> 500 | Z60: =Savings!$D$5 -> 500 | AA60: =Savings!$D$5 -> 500 | AB60: =Savings!$D$5 -> 500 | AC60: =Savings!$D$5 -> 500 | AD60: =Savings!$D$5 -> 500 | AE60: =SUM(D60:AD60) -> 13500
B61: TOTAL CASH PAID OUT | D61: =D58-SUM(D59:D60) -> 1768 | E61: 574 | F61: 7268 | G61: 174 | H61: 1768 | I61: =I58-SUM(I59:I60) -> 174 | J61: 1768 | K61: 174 | L61: 1768 | M61: =M58-SUM(M59:M60) -> 8174 | N61: =N58-SUM(N59:N60) -> 1768 | O61: 174 | P61: 174 | Q61: 1768 | R61: 174 | S61: 1768 | T61: 674 | U61: =U58-SUM(U59:U60) -> 1768 | V61: 174 | W61: =W58-SUM(W59:W60) -> 1768 | X61: =X58-SUM(X59:X60) -> 174 | Y61: 1768 | Z61: =Z58-SUM(Z59:Z60) -> 174 | AA61: 174 | AB61: =AB58-SUM(AB59:AB60) -> 1768 | AC61: 174 | AD61: 1768 | AE61: =SUM(AE59:AE60) -> 14150
B62: Cash on hand (end of month) | D62: =D20-D61 -> 13273.4 | E62: 14087.8 | F62: 12208.2 | G62: 13422.6 | H62: 13043 | I62: =I20-I61 -> 16257.4 | J62: 15877.8 | K62: 19092.2 | L62: 18712.6 | M62: =M20-M61 -> 13927 | N62: =N20-N61 -> 13547.4 | O62: 14761.8 | P62: 17976.2 | Q62: 17596.6 | R62: 20811 | S62: 20431.4 | T62: 21145.8 | U62: =U20-U61 -> 20766.2 | V62: 21980.6 | W62: =W20-W61 -> 21601 | X62: =X20-X61 -> 22815.4 | Y62: 22435.8 | Z62: =Z20-Z61 -> 23650.2 | AA62: 24864.6 | AB62: =AB20-AB61 -> 24485 | AC62: 25699.4 | AD62: 25319.8
B70: Month Number | D70: =MONTH(D8) -> 11 | E70: 12 | F70: 12 | G70: 1 | H70: 1 | I70: 2 | J70: 2 | K70: 3 | L70: 3 | M70: 4 | N70: =MONTH(N8) -> 4 | O70: 5 | P70: 5 | Q70: 5 | R70: 6 | S70: 6 | T70: 7 | U70: =MONTH(U8) -> 7 | V70: 8 | W70: =MONTH(W8) -> 8 | X70: =MONTH(X8) -> 9 | Y70: 9 | Z70: =MONTH(Z8) -> 10 | AA70: 10 | AB70: =MONTH(AB8) -> 10 | AC70: 11 | AD70: 11
B71: M for Monthly & Bi-weekly Expenses, B for Bi-weekly only | D71: M | E71: B | F71: M | G71: B | H71: M | I71: B | J71: M | K71: B | L71: M | M71: B | N71: M | O71: B | P71: B | Q71: M | R71: B | S71: M | T71: B | U71: M | V71: B | W71: M | X71: B | Y71: M | Z71: B | AA71: B | AB71: M | AC71: B | AD71: M

Sheet Income
B2: Current Income Estimates per pay-check (2 week period)
B3: Job Name | C3: Hours/week | D3: Hours/paycheck | E3: $/hour | F3: Gross Income | G3: Tax % | H3: Taxes | I3: Other Withholdings | J3: Withholdings $$ | K3: Cash Inflow
B4: On Campus Job | C4: 10 | D4: =C4*2 -> 20 | E4: 16.5 | F4: =D4*E4 -> 330 | G4: 0.2 | H4: =F4*-G4 -> -66 | I4: None | J4: 0 | K4: =SUM(F4,H4,J4) -> 264
B5: Red Robin | C5: 40 | D5: =C5*2 -> 80 | E5: 17 | F5: =D5*E5 -> 1360 | G5: 0.21 | H5: =F5*-G5 -> -285.6 | I5: None | J5: 0 | K5: =SUM(F5,H5,J5) -> 1074.4
B6: Side Job Name | F6: 50 | G6: 0 | H6: =F6*-G6 -> 0 | I6: None | J6: 0 | K6: =SUM(F6,H6,J6) -> 50

Sheet Investments
B2: Investment Income or sale of assets
B3: Investment Name | C3: Current Value | D3: Date of cash receipt | E3: Income or Liquidation
B4: Ameritrade | C4: 8465 | D4: 2015-01-05 | E4: 4000
B5: Charles Schwab | C5: 4658 | D5: 2015-04-09 | E5: 2000
B6: Motorcycle | C6: 2000 | D6: 2015-06-15 | E6: 2000

Sheet Recurring Expenses
B2: Fixed Expenses
B3: Fixed Expenses | C3: Monthly or Biweekly? | D3: Amount
B4: Tithing | C4: Biweekly | D4: =0.1*SUM(Income!F4:F7) -> 174
B5: Fast offering | C5: Monthly | D5: 20
B6: Rent | C6: Monthly | D6: 695
B7: Utilities | C7: Monthly | D7: 30
B8: Groceries | C8: Biweekly | D8: 190
B9: Eating out | C9: Biweekly | D9: 100
B10: Personal-care (haircut, laundry, toiletries, etc.) | C10: Monthly | D10: 20
B11: Gas | C11: Biweekly | D11: 150
B12: Vehicle Repairs | C12: Monthly | D12: 100
B13: Public Transportation | C13: Monthly | D13: 50
B14: Dates | C14: Biweekly | D14: 30
B15: Gifts | C15: Monthly | D15: 30
B16: Doctor/Dental | C16: Monthly | D16: 50
B17: Health Insurance | C17: Monthly | D17: 400
B18: Life Insurance | C18: Monthly | D18: 50
B19: Vehicle Insurance | C19: Monthly | D19: 19
B20: School Supplies | C20: Monthly | D20: 30
B21: Baby Diapers and Wipes | C21: Biweekly | D21: 30
B24: Variable Expenses | C24: Monthly or Biweekly? | D24: Amount
B25: Sporting goods | C25: Monthly | D25: 50
B26: Snowboarding/Hobbies | C26: Monthly | D26: 100

Sheet One-time Expenses
B2: One-time expenses
B3: Expense | C3: Details | D3: Date of payment | E3: Amount
B4: Tuition/Books | C4: Includes books | D4: 2015-01-05 | E4: 5500
B5: Birth | C5: Includes Hospital | D5: 2015-04-09 | E5: 8000
B6: Moving expenses | D6: 2015-07-15 | E6: 500
B7: Christmas Shopping | D7: 2014-12-20 | E7: 400

Sheet Savings
B2: Savings
B3: Savings Type | C3: Monthly or Biweekly? | D3: Amount
B4: Emergency Fund | C4: Monthly | D4: 50
B5: Save for Birth | C5: Biweekly | D5: 500

Sheet Bank Balances
B2: Current Bank Balances
B3: Checking/Savings Accounts | C3: Net Cash
B4: Chase | C4: 5000
B5: Wells Fargo | C5: 256
B6: Bank of America | C6: 6874
B10: Subtotal | C10: =SUM(C4:C9) -> 12130
B11: Credit Cards
B12: Chase | C12: 1987
B13: Capital One | C13: 365
B14: Bank of America | C14: 125
B17: Subtotal | C17: =SUM(C11:C16) -> 2477
B18: Total Cash On Hand | C18: =C10-C17 -> 9653
